fUSD/lending_fUSD_20250413
["ID","MTS","AMOUNT","RATE_DAILY","PERIOD"]
[357888102,1744510242899,-500.0,0.00019726,2]
[357888103,1744510242909,-1422.45,0.00019726,2]
[357888104,1744510242918,-500.0,0.00019726,2]
[357888106,1744510242928,-31230.99,0.00019726,2]
[357888108,1744510242938,-500.0,0.00019726,2]
[357888110,1744510242949,-618.18,0.00019726,2]
[357888112,1744510242959,-500.0,0.00019726,2]
[357888114,1744510242969,-1650.09,0.00019726,2]
[357888115,1744510242979,-500.0,0.00019726,2]
[357888116,1744510242988,-500.0,0.00019726,2]
[357888117,1744510242998,-651.2,0.00019726,2]
[357888118,1744510243007,-624.63593899,0.00019726,2]
[357888119,1744510243017,-933.96,0.00019726,2]
[357888120,1744510243026,-500.0,0.00019726,2]
[357888121,1744510243035,-500.0,0.00019726,2]
[357888122,1744510243044,-613.47,0.00019726,2]
[357888123,1744510243054,-500.0,0.00019726,2]
[357888124,1744510243063,-500.0,0.00019726,2]
[357888125,1744510243072,-500.0,0.00019726,2]
[357888126,1744510243082,-574.00098557,0.00019726,2]
[357888127,1744510243091,-220.88022492,0.00019726,2]
[357888128,1744510243100,-501.89822914,0.00019726,2]
[357888129,1744510243109,-500.0,0.00019726,2]
[357888130,1744510243119,-500.0,0.00019726,2]
[357888131,1744510243128,-1641.99,0.00019726,2]
[357888132,1744510243137,-500.0,0.00019726,2]
[357888133,1744510243146,-3270.53,0.00019726,2]
[357888134,1744510243155,-500.0,0.00019726,2]
[357888135,1744510243165,-412.57026965,0.00019726,2]
[357888136,1744510243174,-500.0,0.00019726,2]
[357888137,1744510243184,-1072.58,0.00019726,2]
[357888138,1744510243193,-533.62,0.00019726,2]
[357888139,1744510243202,-619.53,0.00019726,2]
[357888140,1744510243211,-500.0,0.00019726,2]
[357888141,1744510243220,-382.29092484,0.00019726,2]
[357888142,1744510243229,-500.0,0.00019726,2]
[357888143,1744510243238,-200.54106771,0.00019726,2]
[357888144,1744510243248,-500.0,0.00019726,2]
[357888145,1744510243257,-500.0,0.00019726,2]
[357888146,1744510243267,-1486.92,0.00019726,2]
[357888147,1744510243278,-500.0,0.00019726,2]
[357888148,1744510243287,-208.5877752,0.00019726,2]
[357888149,1744510243297,-500.0,0.00019726,2]
[357888150,1744510243306,-500.0,0.00019726,2]
[357888151,1744510243315,-235.30463067,0.00019726,2]
[357888152,1744510243324,-500.0,0.00019726,2]
[357888153,1744510243333,-500.0,0.00019726,2]
[357888154,1744510243343,-578.96,0.00019726,2]
[357888155,1744510243352,-500.0,0.00019726,2]
[357888156,1744510243361,-500.0,0.00019726,2]
[357888157,1744510243370,-500.0,0.00019726,2]
[357888158,1744510243380,-500.0,0.00019726,2]
[357888159,1744510243389,-337.89021455,0.00019726,2]
[357888160,1744510243399,-500.0,0.00019726,2]
[357888161,1744510243408,-223.98753815,0.00019726,2]
[357888162,1744510243418,-500.0,0.00019726,2]
[357888163,1744510243427,-500.0,0.00019726,2]
[357888164,1744510243436,-300.0,0.00019755,2]
[357888165,1744510243445,-300.0,0.00019755,2]
[357888166,1744510243455,-1570.03116563,0.00019756,2]
[357888167,1744510243464,-153.659,0.00019756,2]
[357888168,1744510243474,-3963.0,0.00019756,2]
[357888169,1744510243484,-702.278,0.00019756,2]
[357888170,1744510243494,-1129.043,0.00019756,2]
[357888171,1744510243503,-352.72986804,0.00019762,2]
[357888172,1744510243512,-7700.4325035,0.00019763,2]
[357888173,1744510243521,-959.0,0.00019781,2]
[357888174,1744510243531,-150.0,0.00019826,2]
[357888175,1744510243540,-150.0,0.00019826,2]
[357888176,1744510243549,-150.208,0.00019826,2]
[357888177,1744510243558,-150.412,0.00019826,2]
[357888178,1744510243567,-1570.03116563,0.00019828,2]
[357888179,1744510243576,-7700.4325035,0.00019832,2]
[357888180,1744510243585,-241.931,0.00019834,2]
[357888181,1744510243594,-250.0,0.00019834,2]
[357888182,1744510243603,-181.914,0.00019834,2]
[357888183,1744510243613,-959.0,0.00019836,2]
[357888184,1744510243622,-156.43,0.00019862,2]
[357888185,1744510243631,-172.182,0.00019862,2]
[357888186,1744510243640,-257.823,0.00019862,2]
[357888187,1744510243649,-2046.0,0.00019862,2]
[357888188,1744510243659,-1289.151,0.00019862,2]
[357888189,1744510243668,-1329.944,0.00019862,2]
[357888190,1744510243677,-795.0,0.00019862,2]
[357888191,1744510243686,-912.975,0.00019862,2]
[357888192,1744510243696,-1438.0,0.00019862,2]
[357888193,1744510243705,-1279.0,0.00019862,2]
[357888194,1744510243714,-545.0,0.00019862,2]
[357888195,1744510243723,-4159.524,0.00019862,2]
[357888197,1744510243733,-579.02,0.00019862,2]
[357888199,1744510243742,-217.46919101,0.00019863,2]
[357888200,1744510243752,-152.2284337,0.00019863,2]
[357888202,1744510243763,-959.0,0.0001989,2]
[357888203,1744510243772,-1199.871,0.00019893,2]
[357888204,1744510243782,-1980.88047811,0.000199,2]
[357888205,1744510243791,-572.61460492,0.000199,2]
[357888206,1744510243800,-7700.4325035,0.000199,2]
[357888207,1744510243810,-1570.03116563,0.000199,2]
[357888208,1744510243820,-619.62815094,0.000199,2]
[357888209,1744510243829,-959.0,0.00019945,2]
[357888210,1744510243838,-205.0,0.00019973,2]
[357888211,1744510243848,-197.0,0.00019973,2]
[357888212,1744510243858,-189.17,0.00019977,2]
[357888213,1744510243870,-1670.2287444,0.00019986,2]
[357888214,1744510243880,-6608.4163304,0.00019986,2]
[357888215,1744510243889,-36931.5603157,0.00019986,2]
[357888216,1744510243899,-539.3144817,0.00019986,2]
[357888217,1744510243908,-1435.2026994,0.00019986,2]
[357888218,1744510243919,-1750.6083772,0.00019986,2]
[357888219,1744510243928,-2066.0140551,0.00019986,2]
[357888220,1744510243937,-2381.4197329,0.00019986,2]
[357888221,1744510243947,-2696.8254107,0.00019986,2]
[357888222,1744510243957,-191.09221062,0.0001999,2]
[357888223,1744510243967,-332.50440902,0.00019995,2]
[357888224,1744510243976,-330.3067898,0.00019998,2]
[357888225,1744510243986,-113984.93885629,0.00019999,2]
[357888226,1744510243996,-1000.0,0.00019999,2]
[357888227,1744510244005,-151.0,0.00019999,2]
[357888228,1744510244015,-150.0,0.00019999,2]
[357888229,1744510244025,-150.0,0.00019999,2]
[357888230,1744510244034,-150.0,0.00019999,2]
[357888231,1744510244043,-150.0,0.00019999,2]
[357888232,1744510244053,-150.0,0.00019999,2]
[357888233,1744510244063,-150.0,0.00019999,2]
[357888234,1744510244072,-150.0,0.00019999,2]
[357888235,1744510244082,-150.0,0.00019999,2]
[357888236,1744510244092,-150.0,0.00019999,2]
[357888237,1744510244101,-150.0,0.00019999,2]
[357888238,1744510244111,-150.0,0.00019999,2]
[357888239,1744510244120,-150.0,0.00019999,2]
[357888240,1744510244129,-150.0,0.00019999,2]
[357888241,1744510244138,-150.0,0.00019999,2]
[357888242,1744510244149,-162.02699016,0.00019999,2]
[357888243,1744510244158,-1369.0,0.0002,2]
[357888244,1744510244167,-2077.41437153,0.0002,2]
[357888245,1744510244177,-959.0,0.0002,2]
[357888246,1744510244186,-22848.09839512,0.0002,2]
[357888247,1744510244203,-73117.50000085,0.0002,2]
[357888248,1744510244214,-396.43954142,0.0002,2]
[357888249,1744510244227,-1587.98962914,0.0002,2]
[357888250,1744510244238,-174608.73235525,0.0002,2]
[357888251,1744510244255,-500.0,0.00019452,2]
[357888252,1744510244264,-63.01960559,0.0002,2]
[357888253,1744510244275,-32283.67996175,0.0002,2]
[357888254,1744510244286,-270.1039356,0.0002,2]
[357888255,1744510244298,-533.71400346,0.0002,2]
[357888256,1744510244310,-377.34460446,0.0002,2]
[357888273,1744510246087,-252.41187498,0.00019178,2]
[357888274,1744510246134,-247.58812502,0.00019178,2]
[357888275,1744510246144,-45.07885383,0.00019452,2]
[357888276,1744510246273,-454.92114617,0.00019452,2]
[357888278,1744510246283,-230.61635165,0.00019726,2]
[357888281,1744510246302,-269.38364835,0.00019726,2]
[357888283,1744510246311,-500.0,0.00019726,2]
[357888285,1744510246321,-4783.61635165,0.0002,2]
[357888287,1744510246332,-2931.82433353,0.0002,2]
[357888289,1744510246344,-395.0,0.0002,2]
[357888292,1744510246360,-45172.53283062,0.0002,2]
[357888294,1744510246372,-3417.33377014,0.0002,2]
[357888332,1744510332211,369.9477,0.0003,30]
[357888333,1744510332486,369.9477,0.0002,3]
[357888334,1744510332796,369.9477,0.00019998,3]
[357888335,1744510333085,369.9477,0.00019995,3]
[357888336,1744510333384,369.9477,0.00019992,3]
[357888337,1744510333685,369.9477,0.0001999,3]
[357888338,1744510335179,369.9477,0.0002,4]
[357888339,1744510335483,369.9477,0.0002,5]
[357888340,1744510335788,369.9477,0.00019966,5]
[357888341,1744510336070,369.9477,0.00019932,5]
[357888342,1744510336559,369.9477,0.00019897,5]
[357888343,1744510337048,369.9477,0.00019863,5]
[357888344,1744510342598,369.9477,0.0003,31]
[357888345,1744510342882,369.9477,0.0003,31]
[357888346,1744510343182,369.9477,0.0003,31]
[357888347,1744510343464,369.9477,0.0003,31]
[357888348,1744510343759,369.9477,0.0003,31]
[357888369,1744510957171,794.0,0.00032,120]
[357888374,1744511012842,152.450944,0.0002,3]
[357888375,1744511013551,152.450944,0.0003,31]
[357888378,1744511046774,152.88,0.0003,30]
[357888380,1744511097703,500.0,0.0002,4]
[357888384,1744511132940,326.69,0.00013699,2]
[357888385,1744511133300,272.63887261,0.00013699,2]
[357888386,1744511133328,54.05112739,0.00013699,2]
[357888387,1744511133632,277.87352072,0.00013699,2]
[357888388,1744511133658,48.81647928,0.00013699,2]
[357888389,1744511134191,326.69,0.00013699,2]
[357888390,1744511134501,169.02537182,0.00013699,2]
[357888391,1744511134525,157.66462818,0.00013699,2]
[357888392,1744511134833,326.69,0.00013699,2]
[357888393,1744511135308,326.69,0.00013699,2]
[357888394,1744511135642,326.69,0.00013699,2]
[357888395,1744511136005,326.69,0.00013699,2]
[357888396,1744511136361,326.69,0.00013699,2]
[357888397,1744511136730,326.69,0.00013699,2]
[357888398,1744511138589,326.69,0.00013699,2]
[357888399,1744511139059,326.69,0.00013699,2]
[357888400,1744511139393,326.69,0.00013699,2]
[357888401,1744511139850,5.64393848,0.00013699,2]
[357888402,1744511139873,321.04606152,0.00013699,2]
[357888403,1744511140199,326.69,0.00013699,2]
[357888404,1744511140596,326.69,0.00013699,2]
[357888405,1744511140966,326.69,0.00013699,2]
[357888406,1744511141310,326.69,0.00013699,2]
[357888407,1744511141621,326.70921655,0.00013699,2]
[357888408,1744511163000,1145.09,0.00015933,2]
[357888409,1744511165213,-365.44459995,0.00018197,2]
[357888410,1744511170923,742.30940393,0.000199,3]
[357888429,1744511432317,-334.87147571,0.00018197,2]
[357888430,1744511432372,-444.77392434,0.00018197,2]
[357888431,1744511432383,-174.13,0.00018513,2]
[357888432,1744511432394,-250.0,0.00018516,2]
[357888433,1744511432404,-174.13,0.00018518,2]
[357888434,1744511432414,-174.13,0.00018523,2]
[357888435,1744511432426,-174.13,0.00018528,2]
[357888436,1744511432435,-174.13,0.00018533,2]
[357888437,1744511432445,-174.13,0.00018538,2]
[357888438,1744511432455,-174.13,0.00018543,2]
[357888439,1744511432465,-174.13,0.00018548,2]
[357888440,1744511432475,-174.13,0.00018552,2]
[357888441,1744511432484,-2610.31,0.00018555,2]
[357888443,1744511432493,-174.13,0.00018557,2]
[357888445,1744511432503,-174.13,0.00018562,2]
[357888447,1744511432512,-174.13,0.00018567,2]
[357888449,1744511432522,-174.13,0.00018572,2]
[357888451,1744511432531,-174.13,0.00018577,2]
[357888453,1744511432540,-174.13,0.00018582,2]
[357888456,1744511432550,-174.13,0.00018587,2]
[357888457,1744511432559,-174.13,0.00018591,2]
[357888458,1744511432568,-174.13,0.00018596,2]
[357888459,1744511432578,-174.13,0.00018601,2]
[357888460,1744511432587,-174.13,0.00018606,2]
[357888461,1744511432598,-250.0,0.00018619,2]
[357888462,1744511432608,-1000.0,0.00018672,2]
[357888463,1744511432617,-250.0,0.00018861,2]
[357888464,1744511432626,-5690.5429,0.00018978,2]
[357888465,1744511432635,-1079.74377137,0.00019,2]
[357888466,1744511432645,-250.0,0.00019,2]
[357888467,1744511432654,-43384.2891365,0.00019,2]
[357888468,1744511432663,-269.0334,0.00019078,2]
[357888469,1744511432676,-1558.918,0.00019078,2]
[357888470,1744511432685,-500.0,0.00019173,2]
[357888471,1744511432695,-164.35242729,0.00019173,2]
[357888472,1744511432705,-483.23767015,0.00019173,2]
[357888473,1744511432714,-161.16955719,0.00019173,2]
[357888474,1744511432723,-2396.22005566,0.00019177,2]
[357888475,1744511432733,-500.0,0.00019178,2]
[357888476,1744511432742,-500.0,0.00019178,2]
[357888477,1744511432752,-520.25799133,0.00019178,2]
[357888478,1744511432761,-533.62450117,0.00019178,2]
[357888479,1744511432770,-500.0,0.00019178,2]
[357888480,1744511432779,-223.98753815,0.00019178,2]
[357888481,1744511432788,-514.61038254,0.00019178,2]
[357888482,1744511432797,-500.0,0.00019178,2]
[357888483,1744511432807,-500.0,0.00019178,2]
[357888484,1744511432817,-573.45166273,0.00019178,2]
[357888485,1744511432826,-500.0,0.00019178,2]
[357888486,1744511432835,-500.0,0.00019178,2]
[357888487,1744511432844,-555.39696702,0.00019178,2]
[357888489,1744511432853,-517.19,0.00019178,2]
[357888490,1744511432862,-500.0,0.00019178,2]
[357888492,1744511432872,-500.0,0.00019178,2]
[357888494,1744511432881,-500.0,0.00019178,2]
[357888496,1744511432892,-500.0,0.00019178,2]
[357888498,1744511432909,-500.0,0.00019178,2]
[357888500,1744511432923,-500.0,0.00019178,2]
[357888502,1744511432938,-500.0,0.00019178,2]
[357888504,1744511432950,-500.0,0.00019178,2]
[357888506,1744511432959,-500.0,0.00019178,2]
[357888526,1744511433203,-520.3302538,0.00019178,2]
[357888527,1744511433215,-500.0,0.00019178,2]
[357888528,1744511433225,-500.0,0.00019178,2]
[357888529,1744511433236,-500.0,0.00019178,2]
[357888530,1744511433249,-162.93168611,0.00019178,2]
[357888531,1744511433259,-500.0,0.00019178,2]
[357888532,1744511433270,-500.0,0.00019178,2]
[357888533,1744511433282,-500.0,0.00019178,2]
[357888534,1744511433293,-500.0,0.00019178,2]
[357888535,1744511433303,-500.0,0.00019178,2]
[357888536,1744511433313,-546.8866545,0.00019178,2]
[357888537,1744511433324,-500.0,0.00019178,2]
[357888538,1744511433333,-500.0,0.00019178,2]
[357888539,1744511433343,-500.0,0.00019178,2]
[357888540,1744511433352,-521.68,0.00019178,2]
[357888541,1744511433362,-500.0,0.00019178,2]
[357888542,1744511433372,-516.92356699,0.00019178,2]
[357888543,1744511433382,-500.0,0.00019178,2]
[357888544,1744511433392,-500.0,0.00019178,2]
[357888545,1744511433401,-500.0,0.00019178,2]
[357888546,1744511433411,-500.0,0.00019178,2]
[357888547,1744511433421,-500.0,0.00019178,2]
[357888548,1744511433430,-500.0,0.00019178,2]
[357888549,1744511433440,-537.00001243,0.00019178,2]
[357888550,1744511433450,-500.0,0.00019178,2]
[357888551,1744511433460,-500.0,0.00019178,2]
[357888552,1744511433470,-500.0,0.00019178,2]
[357888553,1744511433480,-500.0,0.00019178,2]
[357888554,1744511433490,-500.0,0.00019178,2]
[357888555,1744511433500,-532.82074362,0.00019178,2]
[357888556,1744511433510,-500.0,0.00019178,2]
[357888557,1744511433519,-500.0,0.00019178,2]
[357888558,1744511433529,-500.0,0.00019178,2]
[357888559,1744511433538,-500.0,0.00019178,2]
[357888560,1744511433547,-500.0,0.00019178,2]
[357888561,1744511433557,-500.0,0.00019178,2]
[357888562,1744511433566,-500.0,0.00019178,2]
[357888563,1744511433575,-500.0,0.00019178,2]
[357888564,1744511433585,-500.0,0.00019178,2]
[357888565,1744511433595,-500.0,0.00019178,2]
[357888566,1744511433604,-500.0,0.00019178,2]
[357888567,1744511433614,-500.0,0.00019178,2]
[357888568,1744511433624,-536.72273287,0.00019178,2]
[357888569,1744511433633,-3349.19,0.00019178,2]
[357888570,1744511433643,-500.0,0.00019178,2]
[357888571,1744511433652,-810.76,0.00019178,2]
[357888572,1744511433661,-5199.69,0.00019178,2]
[357888573,1744511433671,-500.0,0.00019178,2]
[357888574,1744511433680,-518.50447436,0.00019178,2]
[357888575,1744511433689,-500.0,0.00019178,2]
[357888576,1744511433699,-500.0,0.00019178,2]
[357888577,1744511433709,-500.0,0.00019178,2]
[357888578,1744511433719,-523.63321188,0.00019178,2]
[357888579,1744511433729,-500.0,0.00019178,2]
[357888580,1744511433738,-500.0,0.00019178,2]
[357888581,1744511433748,-537.11478361,0.00019178,2]
[357888582,1744511433758,-825.19,0.00019178,2]
[357888583,1744511433768,-500.0,0.00019178,2]
[357888584,1744511433779,-500.0,0.00019178,2]
[357888585,1744511433788,-500.0,0.00019178,2]
[357888586,1744511433798,-500.0,0.00019178,2]
[357888587,1744511433807,-500.0,0.00019178,2]
[357888588,1744511433817,-618.0,0.00019178,2]
[357888589,1744511433827,-500.0,0.00019178,2]
[357888590,1744511433836,-500.0,0.00019178,2]
[357888591,1744511433846,-500.0,0.00019178,2]
[357888592,1744511433855,-500.0,0.00019178,2]
[357888593,1744511433865,-1429.37,0.00019178,2]
[357888594,1744511433874,-500.0,0.00019178,2]
[357888595,1744511433884,-500.0,0.00019178,2]
[357888596,1744511433894,-582.51801905,0.00019178,2]
[357888597,1744511433904,-500.0,0.00019178,2]
[357888598,1744511433914,-500.0,0.00019178,2]
[357888599,1744511433924,-500.0,0.00019178,2]
[357888600,1744511433935,-500.0,0.00019178,2]
[357888601,1744511433944,-500.0,0.00019178,2]
[357888602,1744511433955,-500.0,0.00019178,2]
[357888603,1744511433965,-500.0,0.00019178,2]
[357888604,1744511433974,-500.0,0.00019178,2]
[357888605,1744511433984,-28628.4,0.00019178,2]
[357888606,1744511433994,-500.0,0.00019178,2]
[357888607,1744511434003,-500.0,0.00019178,2]
[357888608,1744511434013,-1512.59,0.00019178,2]
[357888609,1744511434023,-500.0,0.00019178,2]
[357888610,1744511434032,-500.0,0.00019178,2]
[357888611,1744511434043,-500.0,0.00019178,2]
[357888612,1744511434053,-1505.16,0.00019178,2]
[357888613,1744511434064,-500.0,0.00019178,2]
[357888614,1744511434075,-618.43,0.00019178,2]
[357888615,1744511434086,-500.0,0.00019178,2]
[357888616,1744511434095,-921.26,0.00019178,2]
[357888617,1744511434105,-500.0,0.00019178,2]
[357888618,1744511434116,-533.26432363,0.00019178,2]
[357888619,1744511434126,-320.0,0.00019178,2]
[357888620,1744511434136,-500.0,0.00019178,2]
[357888621,1744511434146,-615.52028132,0.00019178,2]
[357888622,1744511434156,-513.86990823,0.00019178,2]
[357888623,1744511434166,-596.94,0.00019178,2]
[357888624,1744511434178,-500.0,0.00019178,2]
[357888625,1744511434188,-592.02856179,0.00019178,2]
[357888626,1744511434198,-500.0,0.00019178,2]
[357888627,1744511434209,-500.0,0.00019178,2]
[357888628,1744511434219,-500.0,0.00019178,2]
[357888629,1744511434230,-500.0,0.00019178,2]
[357888630,1744511434244,-500.0,0.00019178,2]
[357888631,1744511434254,-632.11415034,0.00019178,2]
[357888632,1744511434264,-1069.6,0.00019178,2]
[357888633,1744511434275,-3292.83,0.00019178,2]
[357888634,1744511434285,-382.29092484,0.00019178,2]
[357888635,1744511434295,-500.0,0.00019178,2]
[357888636,1744511434305,-515.86086418,0.00019178,2]
[357888637,1744511434316,-500.0,0.00019178,2]
[357888638,1744511434327,-598.32186961,0.00019178,2]
[357888639,1744511434337,-500.0,0.00019178,2]
[357888640,1744511434348,-500.0,0.00019178,2]
[357888641,1744511434358,-531.04725801,0.00019178,2]
[357888642,1744511434369,-500.0,0.00019178,2]
[357888643,1744511434379,-500.0,0.00019178,2]
[357888644,1744511434389,-534.0,0.00019178,2]
[357888645,1744511434399,-500.0,0.00019178,2]
[357888646,1744511434410,-500.0,0.00019178,2]
[357888647,1744511434421,-500.0,0.00019178,2]
[357888648,1744511434431,-567.9,0.00019178,2]
[357888649,1744511434441,-500.0,0.00019178,2]
[357888650,1744511434451,-500.0,0.00019178,2]
[357888651,1744511434461,-500.0,0.00019178,2]
[357888652,1744511434471,-500.0,0.00019178,2]
[357888653,1744511434481,-500.0,0.00019178,2]
[357888654,1744511434490,-500.0,0.00019178,2]
[357888655,1744511434501,-1482.24,0.00019178,2]
[357888656,1744511434510,-500.0,0.00019178,2]
[357888657,1744511434520,-500.0,0.00019178,2]
[357888658,1744511434530,-500.0,0.00019178,2]
[357888659,1744511434540,-500.0,0.00019178,2]
[357888660,1744511434550,-500.0,0.00019178,2]
[357888661,1744511434559,-500.0,0.00019178,2]
[357888662,1744511434569,-578.97,0.00019178,2]
[357888663,1744511434579,-500.0,0.00019178,2]
[357888664,1744511434589,-500.0,0.00019178,2]
[357888665,1744511434598,-500.0,0.00019178,2]
[357888666,1744511434608,-500.0,0.00019178,2]
[357888667,1744511434618,-500.0,0.00019178,2]
[357888668,1744511434629,-618.0,0.00019233,2]
[357888669,1744511434639,-174.98,0.00019242,2]
[357888670,1744511434649,-180.59,0.00019248,2]
[357888671,1744511434659,-105.91013327,0.00019252,2]
[357888677,1744511438085,-269.0334,0.00019078,2]
[357888678,1744511438094,-299.70007939,0.00019178,2]
[357888679,1744511438106,-200.29992061,0.00019178,2]
[357888680,1744511438116,-63.57145793,0.00019178,2]
[357888681,1744511438127,-436.42854207,0.00019178,2]
[357888682,1744511438136,-1636.52294948,0.00019252,2]
[357888683,1744511438147,-369.50775994,0.00019252,2]
[357888684,1744511438158,-658.87625731,0.00019252,2]
[357888685,1744511438168,-1000.0,0.00019252,2]
[357888686,1744511438179,-3384.89921384,0.00019252,2]
[357888687,1744511438188,-1000.0,0.00019252,2]
[357888688,1744511438198,-618.0,0.00019288,2]
[357888689,1744511438207,-3384.89921379,0.00019324,2]
[357888690,1744511438217,-174.98,0.00019342,2]
[357888691,1744511438226,-618.0,0.00019342,2]
[357888692,1744511438236,-636.17040081,0.00019352,2]
[357888693,1744511438249,-167.11074797,0.00019352,2]
[357888694,1744511438258,-15136.60258129,0.00019352,2]
[357888695,1744511438269,-1237.30876027,0.00019352,2]
[357888696,1744511438296,-1103.565853,0.00019352,2]
[357888697,1744511438307,-29408.56650544,0.00019352,2]
[357888698,1744511438318,-3384.89921379,0.00019396,2]
[357888699,1744511438328,-618.0,0.00019397,2]
[357888700,1744511438337,-531.7606038,0.00019399,2]
[357888701,1744511438346,-232.96665155,0.00019403,2]
[357888702,1744511438355,-636.17040073,0.00019413,2]
[357888703,1744511438365,-174.98,0.00019442,2]
[357888704,1744511438375,-174.98,0.00019442,2]
[357888705,1744511438384,-618.0,0.00019452,2]
[357888706,1744511438393,-500.0,0.00019452,2]
[357888707,1744511438402,-500.0,0.00019452,2]
[357888708,1744511438411,-500.0,0.00019452,2]
[357888709,1744511438420,-500.0,0.00019452,2]
[357888710,1744511438430,-500.0,0.00019452,2]
[357888711,1744511438439,-500.0,0.00019452,2]
[357888712,1744511438448,-517.19,0.00019452,2]
[357888713,1744511438458,-500.0,0.00019452,2]
[357888714,1744511438466,-500.0,0.00019452,2]
[357888715,1744511438476,-500.0,0.00019452,2]
[357888716,1744511438485,-500.0,0.00019452,2]
[357888717,1744511438494,-568.15537351,0.00019452,2]
[357888718,1744511438503,-500.0,0.00019452,2]
[357888719,1744511438513,-500.0,0.00019452,2]
[357888720,1744511438523,-500.0,0.00019452,2]
[357888721,1744511438532,-500.0,0.00019452,2]
[357888722,1744511438541,-500.0,0.00019452,2]
[357888723,1744511438550,-500.0,0.00019452,2]
[357888724,1744511438559,-500.0,0.00019452,2]
[357888725,1744511438569,-500.0,0.00019452,2]
[357888726,1744511438578,-566.46881006,0.00019452,2]
[357888728,1744511438588,-500.0,0.00019452,2]
[357888729,1744511438597,-500.0,0.00019452,2]
[357888730,1744511438606,-521.68,0.00019452,2]
[357888731,1744511438615,-317.31080346,0.00019452,2]
[357888732,1744511438624,-500.0,0.00019452,2]
[357888733,1744511438633,-500.0,0.00019452,2]
[357888734,1744511438642,-500.0,0.00019452,2]
[357888735,1744511438651,-500.0,0.00019452,2]
[357888736,1744511438660,-500.0,0.00019452,2]
[357888737,1744511438670,-500.0,0.00019452,2]
[357888738,1744511438680,-500.0,0.00019452,2]
[357888739,1744511438689,-500.0,0.00019452,2]
[357888740,1744511438698,-500.0,0.00019452,2]
[357888741,1744511438708,-500.0,0.00019452,2]
[357888742,1744511438716,-500.0,0.00019452,2]
[357888743,1744511438726,-500.0,0.00019452,2]
[357888744,1744511438735,-500.0,0.00019452,2]
[357888745,1744511438743,-338.11750436,0.00019452,2]
[357888746,1744511438752,-500.0,0.00019452,2]
[357888747,1744511438761,-500.0,0.00019452,2]
[357888748,1744511438770,-500.0,0.00019452,2]
[357888749,1744511438780,-500.0,0.00019452,2]
[357888750,1744511438789,-430.69332257,0.00019452,2]
[357888751,1744511438798,-3349.19,0.00019452,2]
[357888752,1744511438807,-500.0,0.00019452,2]
[357888753,1744511438816,-810.76,0.00019452,2]
[357888754,1744511438825,-5199.69,0.00019452,2]
[357888755,1744511438835,-500.0,0.00019452,2]
[357888756,1744511438844,-500.0,0.00019452,2]
[357888757,1744511438853,-387.8650871,0.00019452,2]
[357888758,1744511438863,-500.0,0.00019452,2]
[357888759,1744511438872,-500.0,0.00019452,2]
[357888760,1744511438882,-500.0,0.00019452,2]
[357888761,1744511438891,-825.19,0.00019452,2]
[357888762,1744511438900,-500.0,0.00019452,2]